Cogmind - Beta 11.1 @@@ ROGUE MODE // 2022.10.16 @ 12:07:55 Player: Beepinex Result: Destroyed by D-53 Grenadier with Mini Grenade Launcher Performance ------------- Evolutions (1) 500 Regions Visited (4) 800 Robots Destroyed (32) 160 Value Destroyed (580) 580 Prototype IDs (0) 0 Alien Tech Used (0) 0 Bonus (0) 0 TOTAL SCORE: 2040 Bonus ------- None Cogmind --------- Core Integrity 0/400 Matter 270/300 Energy 100/100 System Corruption 0% Temperature Cool (0) Movement Core (50) Location -9/Mines Parts ------- > --- POWER (1) -------- (None) > --- PROPULSION (3) --- (None) > --- UTILITY (3) ------ Targeting Computer > --- WEAPON (2) ------- (None) > --- INVENTORY (5) ---- Light Nuclear Core Small Storage Unit Peak State ------------ > --- POWER ------------ Light Nuclear Core > --- PROPULSION ------- Flight Unit Flight Unit Flight Unit > --- UTILITY ---------- Weight Redist. System Seismic Detector Targeting Computer > --- WEAPON ----------- Shock Rifle Mini Grenade Launcher > --- INVENTORY -------- Light Nuclear Core Small Storage Unit Shock Rifle Mining Laser [Rating: 15] Favorites ----------- Power Light Ion Engine Engine Light Ion Engine Power Core Light Nuclear Core Propulsion Flight Unit Wheel Wheel Flight Unit Flight Unit Utility Seismic Detector Device Seismic Detector Storage Small Storage Unit Processor Targeting Computer Weapon Mini Grenade Launcher Energy Gun Shock Rifle Ballistic Gun Heavy Assault Rifle Launcher Mini Grenade Launcher Special Weapon Mining Laser Build | -11 -10 -10 -9 -9 ------- Run | Scr Mat Min Mat Min Slots Evolved 2 | . . . 2 . Power . | . . . . . Propulsion 1 | . . . 1 . Utility 1 | . . . 1 . Weapon . | . . . . . Parts Attached 30 | 5 9 3 8 5 Power 5 | . 2 1 1 1 Engine 3 | . 2 1 . . Core 2 | . . . 1 1 Reactor . | . . . . . Propulsion 8 | 2 2 2 2 . Treads . | . . . . . Leg . | . . . . . Wheel 2 | 2 . . . . Hover . | . . . . . Flight 6 | . 2 2 2 . Utility 4 | 1 2 . 1 . Device 2 | . 1 . 1 . Storage 1 | 1 . . . . Processor 1 | . 1 . . . Hackware . | . . . . . Protection . | . . . . . Artifact . | . . . . . Weapon 13 | 2 3 . 4 4 Energy Gun 2 | . . . 1 1 Energy Cannon . | . . . . . Ballistic Gun 5 | 2 2 . 1 . Ballistic Cannon . | . . . . . Launcher 4 | . 1 . 1 2 Special Weapon 2 | . . . 1 1 Impact Weapon . | . . . . . Slashing Weapon . | . . . . . Piercing Weapon . | . . . . . Special Melee Weapon . | . . . . . Unidentified Prototypes . | . . . . . Parts Lost 11 | . . 1 3 7 Power 1 | . . . 1 . Propulsion 4 | . . 1 1 2 Utility 2 | . . . . 2 Weapon 4 | . . . 1 3 Highest Loss Streak 7 | . . 1 2 7 To Critical Strikes . | . . . . . Average Slot Usage (%) 89 | . 87 97 87 83 Engine 5 | . 7 14 . . Core 4 | . . . 10 11 Wheel 5 | . 17 . . . Flight 19 | . 8 26 27 20 Device 15 | . 13 14 17 20 Storage 3 | . 9 . . . Processor 8 | . 2 14 11 11 Energy Gun 3 | . . . 7 10 Ballistic Gun 9 | . 14 14 3 . Launcher 12 | . 13 14 9 10 Naked Turns . | . . . . . Heaviest Build 13 | 8 13 8 10 10 Greatest Support 20 | 20 20 8 18 14 Greatest Overweight (x) 4 | . 4 1 . . Average Overweight (x) . | . . . . . Largest Inventory Capacity 8 | 8 8 5 5 5 Average Capacity 5 | 7 7 5 5 5 Most Carried 7 | 5 7 5 5 3 Average Carried 4 | 3 4 4 4 1 Final Capacity 8 | 8 5 5 5 5 Final Carried 5 | 5 4 5 4 2 Class Distribution -------------------- 54% | Mutant 45% | Scavenger-Mutant Dominant Class ---------------- Mutant | -10/Materials Scavenger-Mutant | -10/Mines Scavenger-Mutant | -9/Materials Mutant | -9/Mines Resources | -11 -10 -10 -9 -9 ----------- Run | Scr Mat Min Mat Min Matter Collected 748 | 307 110 165 141 25 Remotely . | . . . . . Salvage Created 766 | 101 211 43 382 29 Parts 55 | 7 21 7 18 2 Haulers Intercepted 2 | . 1 . 1 . Recyclers Shooed . | . . . . . Parts Field Recycled . | . . . . . Retrieved Matter . | . . . . . Parts Self-Destructed . | . . . . . Prevented . | . . . . . Kills | -11 -10 -10 -9 -9 ------- Run | Scr Mat Min Mat Min Combat Hostiles Destroyed 21 | . 7 6 7 1 Guns 16 | . 6 3 6 1 AOE 5 | . 1 3 1 . Classes Destroyed 11 | 2 4 1 3 1 Worker 1 | . . 1 . . Builder 1 | . . . 1 . Tunneler 2 | 2 . . . . Hauler 2 | . 1 . 1 . Recycler 1 | 1 . . . . Operator 1 | . . . 1 . Watcher 3 | . 2 . 1 . Swarmer 12 | . 6 6 . . Grunt 7 | . 1 . 6 . Sentry 1 | . . . 1 . Demolisher 1 | . . . . 1 Best Kill Streak 5 | 1 3 4 5 1 Combat Bots Only 3 | . 3 3 3 1 Max Kills in Single Turn 4 | 1 1 4 2 1 Gunslinging . | . . . . . Exploded 3 | . 1 3 1 . Melee . | . . . . . Uniques/NPCs Destroyed . | . . . . . Combat | -11 -10 -10 -9 -9 -------- Run | Scr Mat Min Mat Min Damage Taken 1263 | . 255 184 286 538 Core 569 | . 69 59 65 376 Absorbed by Shields . | . . . . . Regen/Repaired (Parts) 11 | . . . 11 . Core Remaining (%) 74 | 100 . 48 . . Volleys Fired 125 | 19 44 17 37 8 Largest 2 | 1 1 1 2 2 Hottest 100 | 20 30 30 100 100 Shots Fired 130 | 19 44 17 38 12 Gun 115 | 19 43 15 34 4 Cannon . | . . . . . Launcher 9 | . 1 2 1 5 Special 6 | . . . 3 3 Kinetic 85 | 19 43 15 8 . Thermal 6 | . . . 3 3 Explosive 9 | . 1 2 1 5 Electromagnetic 30 | . . . 26 4 Robot Hit Streak 10 | 7 10 7 6 6 Robot Miss Streak 3 | 2 3 3 3 1 Penetration Max . | . . . . . Secondary Targets . | . . . . . Shots Hit Robots 81 | 14 28 10 23 6 Core Hits 45 | 4 11 9 12 9 Critical Kills . | . . . . . Critical Parts Destroyed . | . . . . . Critical Strikes . | . . . . . Melee Attacks . | . . . . . Impact . | . . . . . Slashing . | . . . . . Piercing . | . . . . . Sneak Attacks . | . . . . . Combat Hostiles . | . . . . . Follow-up Attacks . | . . . . . Damage Inflicted 1808 | 168 446 326 758 110 Guns 1216 | 168 413 139 435 61 Cannons . | . . . . . Explosions 583 | . 33 187 323 40 Melee . | . . . . . Ramming 9 | . . . . 9 Kinetic 821 | 168 413 139 101 . Thermal 239 | . . . 239 . Explosive 344 | . 33 187 84 40 Electromagnetic 395 | . . . 334 61 Impact . | . . . . . Slashing . | . . . . . Piercing . | . . . . . Highest Corruption . | . . . . . Average Corruption . | . . . . . Corruption Purged . | . . . . . Corruption Blocked . | . . . . . Overload Shots . | . . . . . Overflow Damage 43 | . . 5 38 . Projectiles . | . . . . . Explosions 43 | . . 5 38 . Melee . | . . . . . Knockbacks . | . . . . . Impact . | . . . . . Kinetic . | . . . . . Secondary . | . . . . . Self-Inflicted Damage 44 | . . 18 . 26 Shots 2 | . . 1 . 1 Rammed 4 | . 1 . . 3 Targets Rammed 4 | . 1 . . 3 Kicked . | . . . . . Crushed . | . . . . . Highest Temperature 122 | . 2 1 122 74 Average Temperature 39 | . 2 1 39 41 Received Heat Transfer 177 | . 24 . 153 . Siege Activations . | . . . . . Robots Corrupted . | . . . . . Combat Hostiles . | . . . . . Parts Fried 1 | . . . 1 . Impact Corruptions . | . . . . . Robots Melted . | . . . . . Combat Hostiles . | . . . . . Parts Melted 1 | . . . 1 . Heat Transferred 150 | . . . 150 . Parts Sabotaged . | . . . . . Parts Stolen . | . . . . . Parts Stripped . | . . . . . Power Chain Reactions 1 | . . . 1 . Missiles Intercepted . | . . . . . Alert | -11 -10 -10 -9 -9 ------- Run | Scr Mat Min Mat Min Peak Influence 668 | 15 336 262 668 278 Initial 252 | . 9 52 102 252 Average 210 | 5 137 149 386 253 Maximum Alert Level 2 | . 1 1 2 1 Low Security (%) 47 | 100 64 63 15 . Level 1 40 | . 35 36 42 100 Level 2 12 | . . . 42 . Level 3 . | . . . . . Level 4 . | . . . . . Level 5 . | . . . . . High Security . | . . . . . Max Security . | . . . . . Squads Dispatched 5 | . . . 5 . Investigation 3 | . . . 3 . Extermination . | . . . . . Reinforcement 2 | . . . 2 . Assault . | . . . . . Garrison . | . . . . . Intercept . | . . . . . Searches Triggered . | . . . . . Construction Impeded . | . . . . . Haulers Reinforced . | . . . . . Active Scanning Responses . | . . . . . Cargo Convoy Interrupts . | . . . . . Stealth | -11 -10 -10 -9 -9 --------- Run | Scr Mat Min Mat Min Distress Signals 2 | . . . 2 . Communications Jammed . | . . . . . Distress Signals . | . . . . . Times Spotted 44 | . 11 8 23 2 Peak Tracking Total 8 | . 3 3 8 2 Tactical Retreats 5 | . 1 1 3 . Traps | -11 -10 -10 -9 -9 ------- Run | Scr Mat Min Mat Min Traps Triggered 1 | . . . 1 . Indirectly . | . . . . . Trap Hack Attempts . | . . . . . Triggered . | . . . . . Disarmed 8 | . 4 . 4 . Reprogrammed . | . . . . . Reused . | . . . . . Traps Extracted . | . . . . . Installed . | . . . . . Triggered . | . . . . . Machines | -11 -10 -10 -9 -9 ---------- Run | Scr Mat Min Mat Min Machines Disabled 3 | . . . 3 . Max in Single Turn 2 | . . . 2 . Machines Sabotaged . | . . . . . Garrisons Compromised . | . . . . . Overloaded Fab Kills . | . . . . . Hacking | -11 -10 -10 -9 -9 --------- Run | Scr Mat Min Mat Min Machines Accessed 19 | . 9 . 10 . Terminals 16 | . 8 . 8 . Fabricators . | . . . . . Repair Stations 1 | . . . 1 . Recycling Units 2 | . 1 . 1 . Scanalyzers . | . . . . . Garrison Access . | . . . . . Total Hacks 81 | . 39 . 42 . Successful 45 | . 21 . 24 . Failed 34 | . 17 . 17 . Catastrophic 3 | . 1 . 2 . Database Lockouts 2 | . 1 . 1 . Manual 80 | . 40 . 40 . Terminals 71 | . 35 . 36 . Fabricators . | . . . . . Repair Stations 3 | . . . 3 . Recycling Units 7 | . 4 . 3 . Scanalyzers . | . . . . . Garrison Access . | . . . . . Terminal Hacks 17 | . 9 . 8 . Robot Analysis 2 | . 1 . 1 . Branch Access Points 2 | . 1 . 1 . Terminal Index 1 | . 1 . . . Recycling Unit Index 2 | . 1 . 1 . Disarm Traps 2 | . 1 . 1 . Recall Investigation 1 | . . . 1 . Registered Components 2 | . 1 . 1 . Zone Layout 5 | . 3 . 2 . Fabricator Hacks . | . . . . . Repair Station Hacks 2 | . . . 2 . Scan Component 1 | . . . 1 . Repair 1 | . . . 1 . Recycling Unit Hacks . | . . . . . Scanalyzer . | . . . . . Garrison Access Hacks . | . . . . . Unauthorized Hacks 26 | . 12 . 14 . Terminals 20 | . 8 . 12 . Track 6 | . 3 . 3 . Assimilate 3 | . 1 . 2 . Botnet 8 | . 3 . 5 . Disrupt 1 | . . . 1 . Operators 2 | . 1 . 1 . Fabricators . | . . . . . Repair Stations 1 | . . . 1 . Mechanics 1 | . . . 1 . Recycling Units 5 | . 4 . 1 . Monitor 1 | . 1 . . . Reject 2 | . 1 . 1 . Recyclers 1 | . 1 . . . Mask 1 | . 1 . . . Scanalyzers . | . . . . . Garrison Access . | . . . . . Data Cores Recovered . | . . . . . Used . | . . . . . Hacking Detections 17 | . 8 . 9 . Full Trace Events 3 | . . . 3 . Feedback Events . | . . . . . Feedback Blocked . | . . . . . Robot Schematics Acquired . | . . . . . Robots Built . | . . . . . Authchips . | . . . . . Time . | . . . . . Total Robot Build Rating . | . . . . . Part Schematics Acquired . | . . . . . Parts Built . | . . . . . Authchips . | . . . . . Time . | . . . . . Total Part Build Rating . | . . . . . Parts Repaired 1 | . . . 1 . Time 26 | . . . 26 . Parts Recycled . | . . . . . Recycled Matter . | . . . . . Retrieved Matter . | . . . . . Retrieved Components . | . . . . . Parts Scanalyzed . | . . . . . Part Schematics Acquired . | . . . . . Parts Damaged . | . . . . . Bothacking | -11 -10 -10 -9 -9 ------------ Run | Scr Mat Min Mat Min Used RIF Installer . | . . . . . Robots Hacked . | . . . . . Non-combat . | . . . . . Combat . | . . . . . Robot Hacks Applied . | . . . . . Relay Couplers Released . | . . . . . Fabnet Peak Effective % . | . . . . . Robots Rewired . | . . . . . Allies Hacked . | . . . . . Hacks Repelled . | . . . . . Allies | -11 -10 -10 -9 -9 -------- Run | Scr Mat Min Mat Min Total Allies 2 | . 1 . 1 . Largest Group 2 | . 1 1 2 . Highest-Rated Group 20 | . 10 10 20 . Highest-Rated Ally 10 | . 10 10 10 . Total Orders . | . . . . . Ally Attacks . | . . . . . Total Damage . | . . . . . Kills . | . . . . . Allies Corrupted . | . . . . . Allies Melted . | . . . . . Intel | -11 -10 -10 -9 -9 ------- Run | Scr Mat Min Mat Min Robot Analysis Total 2 | . 1 . 1 . Derelict Logs Recovered 3 | . . 2 . 1 Drone Launches . | . . . . . Drone Recoveries . | . . . . . Exploration | -11 -10 -10 -9 -9 ------------- Run | Scr Mat Min Mat Min Turns Passed 1307 | 115 409 285 376 122 Spaces Moved 1841 | 79 392 535 606 229 Core 11 | 3 4 . . 4 Treads . | . . . . . Legs . | . . . . . Wheels 271 | 76 195 . . . Hover . | . . . . . Flight 1559 | . 193 535 606 225 Fastest Speed 34 | 50 37 37 34 37 Average Speed 43 | 78 60 38 35 37 Slowest Speed 250 | 80 250 120 37 50 Overloaded Moves . | . . . . . Propulsion Burnouts . | . . . . . Robots Hopped 17 | . 1 2 13 1 Cave-ins Triggered . | . . . . . Exploration Rate (%) 54 | 5 55 94 63 55 Regions Visited 4 Branch Regions 2 Pre-discovered Areas 1 | . . 1 . . Known Exits Taken 2 | . 1 . 1 . Unknown Exits Taken 2 | 1 . 1 . . Scrap Searched 3 | . . 2 . 1 Spaces Dug 6 | . . . 3 3 Terrain Destroyed 77 | . 14 16 17 30 Melee . | . . . . . Projectile 6 | . . . 3 3 AOE 71 | . 14 16 14 27 Terrain Rammed . | . . . . . Walls Destroyed . | . . . . . Machines Disabled . | . . . . . Actions | -11 -10 -10 -9 -9 --------- Run | Scr Mat Min Mat Min Total 2183 | 112 519 596 710 246 Wait 156 | . 58 39 58 1 Move 1806 | 78 389 531 581 227 Hop 14 | . 1 1 11 1 Pick Up 30 | 10 9 3 8 . Fast Attach 1 | . . . 1 . Attach 23 | 5 8 1 6 3 Detach 1 | . . . . 1 Swap 6 | . 1 2 1 2 Drop 17 | . 8 2 7 . Fire 125 | 19 44 17 37 8 Melee . | . . . . . Ram 4 | . 1 . . 3 Kick . | . . . . . Crush . | . . . . . Escape Stasis . | . . . . . Rewire . | . . . . . Trap . | . . . . . Miscellaneous . | . . . . . Route ------- -11/Scrapyard -10/Materials (discovered 4 exits: *Mat x3 / *Min) -10/Mines -9/Materials (discovered 4 exits: [*Mat x2] / *Min x2) -9/Mines (discovered 2 exits: [*Mat] / [*Zio]) History --------- Turn | Location | Event 2 | -11/Scrapyard | Met Revision 17 19 | -11/Scrapyard | Discovered new exit (range 15) 116 | -11/Scrapyard | Entered Materials 236 | -10/Materials | Discovered new exit (range 6) 236 | -10/Materials | Identified exit to Mines 265 | -10/Materials | Central database locked down 312 | -10/Materials | Build established: Mutant 418 | -10/Materials | Discovered new exit (range 15) 482 | -10/Materials | Discovered new exit (range 20) 525 | -10/Materials | Entered Mines 525 | -10/Mines | Accompanied by 1 ally 542 | -10/Mines | Met a Derelict bent on vengeance 553 | -10/Mines | Learned location of Mines (-8) 706 | -10/Mines | Core integrity fell below 50% 780 | -10/Mines | Learned Materials terminal intel 781 | -10/Mines | Discovered new exit (range 11) 810 | -10/Mines | Entered Materials 810 | -9/Materials | Accompanied by 1 ally 810 | -9/Materials | Evolved 2 slots: Propulsion x1, Utility x1 811 | -9/Materials | Loaded intel: 12 terminal locations 838 | -9/Materials | Discovered new exit (range 10) 916 | -9/Materials | Repaired Flight Unit 1087 | -9/Materials | Discovered new exit (range 4) 1116 | -9/Materials | Identified exit to Mines 1119 | -9/Materials | Central database locked down 1185 | -9/Materials | Discovered new exit (range 10) 1186 | -9/Materials | Entered Mines 1194 | -9/Mines | A Derelict revealed a hidden shortcut to a safe place 1201 | -9/Mines | Discovered new exit (range 16) 1202 | -9/Mines | Learned Materials non-interactive machine intel 1239 | -9/Mines | Assembled infested the area 1291 | -9/Mines | Core integrity fell below 50% 1303 | -9/Mines | Core integrity fell below 20% 1308 | -9/Mines | Destroyed by D-53 Grenadier with Mini Grenade Launcher Last Messages --------------- 01290_ Seismic Detector destroyed. 01290_ Weight Redist. System destroyed. 01290_ Flight Unit destroyed. 01292_ D-53 Grenadier destroyed. 01292_ Flight Unit destroyed. 01298_ Shock Rifle destroyed. 01302_ Mni. Grenade Launcher destroyed. 01303_ The unstable cave ceiling collapses. 01304_ D-53 Grenadier misfires. 01305_ Slammed into D-53 Grenadier. 01306_ The unstable cave ceiling collapses. 01306_ Slammed into D-53 Grenadier. 01306_ Destabilizing: System interference. 01306_ Targeting Computer temporarily disabled. 01307_ The unstable cave ceiling collapses. 01307_ Slammed into D-53 Grenadier. 01308_ The unstable cave ceiling collapses. 01308_ HV Slug penetrates Laser Drill. 01308_ Laser Drill disabled. 01308_ HV Slug penetrates Laser Drill. Map ----- +----------------------------------------------------+ | ?????????????????????????????????????????????? | | ?????????????????????????????????????????????? | | ?????????????????????????????????????????????? | | ?????????????????????????????????????????????? | | ?????????????????????????????????????????????? | | ?????????????????????????????????????????????? | | ?????????????????????????????????????????????? | | ?????????????????????????????????????????????? | | ?????????????????????????????????????????????? | | ?????????????????????????????????????????????? | | ???????????????????????????????????? ????????? | | ??????????????????????????????????? ????????? | | ??????????????????????????????????? ????????? | | ????????????????????######?????????# ???????? | | ???????????????????## ##????????# ???????? | | ??????????????????## ##???????# ???????? | | ??????????????????# #???????# #??????? | | ??????????????????# #???????# #??????? | | ???????????????????# #???????# #??????? | | ???????????????????#### #???????# #??????? | | ??????????????????????## #????#### ###????? | | ???????????????????????## #???## # ##???? | | ??????????????????????### #???# ##??? | | ?????????????????????## ##### ##?? | | ????????????????????## d ## #?? | | ???????????????????## @ # #?? | | ???????????????????# % "" #??? | | ?????????????????### "" ###??? | | ????????????????## "" ##????? | | ??????????????### ##????? | | ??????????????# #????? | | ??????????????# # ### #????? | | ??????????????# #####?## #????? | | ??????????????# # # ##?????## ##????? | | ??????????????# # ##???????### #?????? | | ??????????????### # #??????????# #?????? | | ????????????????# #??????????# #?????? | | ????????????????## ##?????????## ##????? | | ?????????????????## #?????????## #????? | | ??????????????????## ##????????## #????? | | ???????????????????## ??????????# ##???? | | ????????????????????## ??????????# #???? | | ?????????????????????# ??????????##| #???? | | ?????????????????????? ???????????# #???? | | ?????????????????????? ??????????## #???? | | ????????????????? ???? ??####???## ##???? | | ???????????????? ????## ##?## * ##????? | | ???????????????? #????# ### ##?????? | | ???????????????? #????# ! ##??????? | | ####???????????# #????# | =##???????? | +----------------------------------------------------+ Best States ------------- Heat Dissipation 28 Energy Generation 14 Energy Capacity 160 Matter Stores 300 Matter Capacity 300 Sight Range 16 Terrain Scan Density 10 Additional Mass Support 6 Evasion (%) 63 Targeting Accuracy 5 Item Schematics ----------------- None Robot Schematics ------------------ None Fabricated ------------ Nothing Alien Tech Used ----------------- None Achievements -------------- None Challenges ------------ None Game ------ Seed AutogunPrecisionRay Manual? 0 Play Time 00:33:04 Cumulative 28.6 hours Start 2022.10.16 @ 11:26:38 End 2022.10.16 @ 12:07:55 Sessions 1 Manual Loads 0 Difficulty Rogue Special Mode None Game No. 51 Rogue 51 Adventurer 0 Explorer 0 Win Type - Total 0 Types 0/0/0/0/0/0/0/0/0 Lore% 18 Gallery% 21 Achievement% 24 Wizard Run 0 Options --------- ASCII 0 Keyboard 0 Movement Numpad Keybinds 0 Fullscreen 2 Font 18/TerminusBold Map View 76x50 Tactical HUD 1 Map Filters NONE Filters NONE Steam 1 RUN: 55fe3b17-87bf-4b32-b0c4-703ae0c6bd07